bitfinex/quotes_SOLUSD_20220102
["timestamp","ask_amount","ask_price","bid_price","bid_amount"]
[1641167604132,12.87854097,176.39,176.38,7.80920308]
[1641167605152,12.61854097,176.39,176.38,12.48920308]
[1641167605854,12.11854097,176.39,176.38,12.48920308]
[1641167607355,12.11854097,176.39,176.38,7.80920308]
[1641167607755,12.37854097,176.39,176.38,7.80920308]
[1641167608156,12.87854097,176.39,176.38,7.80920308]
[1641167609556,12.37854097,176.39,176.38,7.80920308]
[1641167609859,12.87854097,176.39,176.38,7.80920308]
[1641167612161,12.37854097,176.39,176.38,7.80920308]
[1641167612361,12.87854097,176.39,176.38,7.80920308]
[1641167612764,12.37854097,176.39,176.38,7.80920308]
[1641167613366,12.87854097,176.39,176.38,7.80920308]
[1641167615064,12.37854097,176.39,176.38,7.80920308]
[1641167615665,12.87854097,176.39,176.38,7.80920308]
[1641167619868,7.80920308,176.38,176.3,74.6251]
[1641167620069,8.5089,176.34,176.31,1.3299]
[1641167620270,8.5089,176.34,176.32,2.45485896]
[1641167620469,8.5089,176.34,176.27,87.6487]
[1641167620670,8.5089,176.34,176.27,87.9087]
[1641167620869,11.27460531,176.34,176.27,90.93316511]
[1641167622171,8.5082,176.35,176.27,90.93316511]
[1641167622369,9.0082,176.35,176.27,90.93316511]
[1641167622769,9.0082,176.35,176.27,91.43316511]
[1641167623181,11.33241422,176.35,176.27,91.43316511]
[1641167623377,11.33241422,176.35,176.27,99.94186511]
[1641167623979,2.82421422,176.35,176.27,99.94186511]
[1641167624683,0.5,176.35,176.27,99.94186511]
[1641167624881,9.0077,176.36,176.27,99.94186511]
[1641167626082,9.0077,176.36,176.29,8.5074]
[1641167626280,9.0077,176.36,176.3,0.96420086]
[1641167626481,16.31630308,176.38,176.3,0.96420086]
[1641167626681,16.31630308,176.38,176.31,25.7372639]
[1641167626880,16.31630308,176.38,176.31,26.2372639]
[1641167627081,16.31630308,176.38,176.31,25.7372639]
[1641167627286,16.31630308,176.38,176.31,26.9614639]
[1641167627582,2.76919792,176.37,176.31,1.2242]
[1641167627782,8.5078,176.36,176.31,1.2242]
[1641167628482,9.2678,176.36,176.31,1.2242]
[1641167628681,8.5078,176.36,176.31,1.2242]
[1641167629083,8.5072,176.37,176.31,1.4842]
[1641167629284,8.5072,176.37,176.31,1.7242]
[1641167629484,8.5072,176.37,176.31,1.2242]
[1641167629685,8.5072,176.37,176.31,1.4842]
[1641167630090,10.79203046,176.37,176.31,1.4842]
[1641167634311,11.29203046,176.37,176.31,1.4842]
[1641167634510,10.79203046,176.37,176.31,1.4842]
[1641167634710,11.29203046,176.37,176.31,1.4842]
[1641167635214,10.79203046,176.37,176.31,1.4842]
[1641167636010,11.29203046,176.37,176.31,1.4842]
[1641167636210,8.5072,176.37,176.31,1.4842]
[1641167636412,8.7672,176.37,176.31,1.4842]
[1641167637209,8.7672,176.37,176.31,1.2242]
[1641167637715,8.5072,176.37,176.31,1.2242]
[1641167638612,8.5072,176.37,176.31,1.4842]
[1641167639214,8.5072,176.37,176.31,1.9842]
[1641167639614,8.5072,176.37,176.31,1.4842]
[1641167639816,8.5072,176.37,176.31,1.9842]
[1641167640219,10.71401045,176.38,176.31,1.4842]
[1641167640417,19.22081045,176.38,176.31,9.9908]
[1641167640615,19.22081045,176.38,176.31,10.4908]
[1641167640815,19.22081045,176.38,176.31,10.2308]
[1641167641016,19.22081045,176.38,176.31,9.7308]
[1641167641617,19.48081045,176.38,176.31,9.7308]
[1641167642017,19.48081045,176.38,176.31,9.9908]
[1641167642719,16.07600308,176.38,176.31,9.9908]
[1641167644920,16.07600308,176.38,176.31,10.4908]
[1641167645422,16.07600308,176.38,176.31,9.9908]
[1641167646123,7.56920308,176.38,176.31,10.4908]
[1641167647221,16.07630308,176.38,176.31,1.4842]
[1641167647821,16.07630308,176.38,176.31,1.9842]
[1641167648024,16.07630308,176.38,176.31,1.4842]
[1641167648221,16.07630308,176.38,176.31,9.991]
[1641167648421,16.07630308,176.38,176.31,10.491]
[1641167648621,7.56920308,176.38,176.31,10.491]
[1641167650225,7.56920308,176.38,176.31,9.991]
[1641167650722,7.56920308,176.38,176.31,10.491]
[1641167652026,7.56920308,176.38,176.31,9.991]
[1641167652225,7.56920308,176.38,176.31,10.491]
[1641167654627,16.07620308,176.38,176.31,9.991]
[1641167655228,2.70860761,176.37,176.31,1.4842]
[1641167660133,2.70860761,176.37,176.31,1.2242]
[1641167660332,11.47630761,176.37,176.29,16.6077]
[1641167660532,11.97630761,176.37,176.29,16.8677]
[1641167660932,11.97630761,176.37,176.29,17.3677]
[1641167661132,11.47630761,176.37,176.3,2.54697888]
[1641167661534,11.47630761,176.37,176.3,2.80697888]
[1641167662237,11.47630761,176.37,176.3,0.26]
[1641167662437,13.18840761,176.37,176.28,9.7363]
[1641167662835,13.18840761,176.37,176.28,9.9963]
[1641167663234,13.18840761,176.37,176.29,2.14304186]
[1641167663635,13.18840761,176.37,176.29,2.40304186]
[1641167664035,13.18840761,176.37,176.29,0.26]
[1641167664235,13.18840761,176.37,176.28,9.9963]
[1641167664438,13.18840761,176.37,176.28,1.2281]
[1641167667539,13.18840761,176.37,176.27,2.44013013]
[1641167669742,13.18840761,176.37,176.27,2.70013013]
[1641167670742,13.18840761,176.37,176.27,11.70873013]
[1641167672146,13.18840761,176.37,176.28,1.2978]
[1641167672570,8.7677,176.37,176.28,10.066]
[1641167672773,9.2677,176.37,176.28,10.066]
[1641167672973,9.2677,176.37,176.28,1.2978]
[1641167673771,2.69573132,176.36,176.28,1.2978]
[1641167673971,8.5086,176.35,176.28,1.2978]
[1641167674477,9.0086,176.35,176.28,1.2978]
[1641167676576,9.2686,176.35,176.28,1.2978]
[1641167677179,9.2686,176.35,176.29,26.3704324]
[1641167677374,8.5086,176.35,176.29,26.3704324]
[1641167678176,8.5079,176.36,176.29,26.3704324]
[1641167678378,9.0079,176.36,176.29,26.3704324]
[1641167679179,8.5079,176.36,176.29,26.3704324]
[1641167679380,8.5079,176.36,176.29,34.8781324]
[1641167679583,8.5079,176.36,176.29,35.1381324]
[1641167680180,9.82,176.37,176.29,35.1381324]
[1641167680380,10.32,176.37,176.29,35.1381324]
[1641167680683,10.32,176.37,176.29,35.6381324]
[1641167684084,9.82,176.37,176.29,35.6381324]
[1641167684284,10.32,176.37,176.29,35.6381324]
[1641167684789,10.32,176.37,176.29,34.8781324]
[1641167684989,10.32,176.37,176.29,26.3704324]
[1641167685888,10.58,176.37,176.29,26.3704324]
[1641167687989,10.58,176.37,176.28,1.2978]
[1641167688189,10.58,176.37,176.28,1.5578]
[1641167689090,10.58,176.37,176.28,27.61853636]
[1641167690497,10.08,176.37,176.28,36.62673636]
[1641167690690,9.82,176.37,176.28,36.62673636]
[1641167691191,15.81620308,176.38,176.28,36.62673636]
[1641167691394,15.81620308,176.38,176.29,8.1]
[1641167691595,7.30920308,176.38,176.31,8.5065]
[1641167691992,7.30920308,176.38,176.31,9.2665]
[1641167692293,7.30920308,176.38,176.31,8.5065]
[1641167692694,7.30920308,176.38,176.31,8.7665]
[1641167693193,7.30920308,176.38,176.31,9.2665]
[1641167693396,7.30920308,176.38,176.31,8.5065]
[1641167694195,15.81620308,176.38,176.31,8.5065]
[1641167694896,16.31620308,176.38,176.31,8.5065]
[1641167695796,7.30920308,176.38,176.31,9.0065]
[1641167695996,7.30920308,176.38,176.31,9.2665]
[1641167696397,7.30920308,176.38,176.31,9.0065]
[1641167696595,7.30920308,176.38,176.29,8.1]
[1641167696796,7.80920308,176.38,176.29,8.1]
[1641167697096,16.31640308,176.38,176.29,8.1]
[1641167697296,17.61540308,176.38,176.29,8.1]
[1641167700002,17.87540308,176.38,176.29,8.1]
[1641167705703,17.87540308,176.38,176.29,32.95935597]
[1641167707932,17.87540308,176.38,176.29,24.85935597]
[1641167708733,19.38442066,176.38,176.29,24.85935597]
[1641167710139,17.87540308,176.38,176.29,24.85935597]
[1641167710938,17.61540308,176.38,176.29,24.85935597]
[1641167713343,15.81640308,176.38,176.29,24.85935597]
[1641167713542,15.81640308,176.38,176.3,8.1]
[1641167713543,7.30920308,176.38,176.3,8.1]
[1641167713743,7.30920308,176.38,176.33,8.5057]
[1641167713940,7.30920308,176.38,176.33,13.7387]
[1641167714142,7.30920308,176.38,176.33,14.4987]
[1641167714440,7.30920308,176.38,176.34,1.54853584]
[1641167714841,7.30920308,176.38,176.34,2.30853584]
[1641167715243,7.30920308,176.38,176.34,10.81363584]
[1641167718851,7.30920308,176.38,176.34,18.91363584]
[1641167721549,7.30920308,176.38,176.34,17.1051]
[1641167721749,7.30920308,176.38,176.34,16.6051]
[1641167724155,7.30920308,176.38,176.34,8.1]
[1641167724359,7.30920308,176.38,176.32,8.5059]
[1641167724556,7.80920308,176.38,176.31,9.4362]
[1641167724758,7.80920308,176.38,176.31,1.8362]
[1641167725155,7.80920308,176.38,176.31,0.5]
[1641167725355,7.80920308,176.38,176.29,3.2822118]
[1641167725554,2.83629453,176.37,176.3,2.90993029]
[1641167725757,8.5082,176.36,176.3,2.90993029]
[1641167725955,8.7682,176.36,176.3,3.40993029]
[1641167727061,2.83629453,176.37,176.3,3.40993029]
[1641167727561,15.81680308,176.38,176.3,3.40993029]
[1641167727960,15.81680308,176.38,176.3,3.66993029]
[1641167728161,15.81680308,176.38,176.3,12.17703029]
[1641167728863,7.30920308,176.38,176.3,12.17703029]
[1641167730363,7.30920308,176.38,176.3,11.67703029]
[1641167730964,7.30920308,176.38,176.3,12.17703029]
[1641167732585,7.56920308,176.38,176.3,12.17703029]
[1641167735088,7.56920308,176.38,176.3,9.0071]
[1641167735289,8.06920308,176.38,176.29,1.2116]
[1641167735489,8.06920308,176.38,176.28,39.93981611]
[1641167735692,8.06920308,176.38,176.28,8.1]
[1641167735890,16.57640308,176.38,176.28,8.6]
[1641167736889,21.71640308,176.38,176.28,8.6]
[1641167737095,21.71640308,176.38,176.28,0.5]
[1641167737290,22.93490308,176.38,176.28,0.5]
[1641167737490,24.44392066,176.38,176.25,1.7668]
[1641167737689,24.44392066,176.38,176.26,2.19054678]
[1641167737890,19.30392066,176.38,176.26,2.69054678]
[1641167738094,2.79702678,176.36,176.26,2.69054678]
[1641167738292,8.5099,176.33,176.26,2.69054678]
[1641167738892,2.79702678,176.36,176.26,2.69054678]
[1641167739092,3.29702678,176.36,176.26,2.69054678]
[1641167739292,2.79702678,176.36,176.26,2.95054678]
[1641167739492,2.79702678,176.36,176.26,10.79054678]
[1641167739695,3.29702678,176.36,176.26,10.79054678]
[1641167740295,3.55702678,176.36,176.26,13.57275858]
[1641167740594,12.06562678,176.36,176.26,13.57275858]
[1641167740794,12.06562678,176.36,176.26,13.07275858]
[1641167741095,12.06562678,176.36,176.26,10.29054678]
[1641167744803,12.06562678,176.36,176.24,108.6204941]
[1641167745403,12.06562678,176.36,176.25,9.52669368]
[1641167745804,12.06562678,176.36,176.25,10.02669368]
[1641167746002,12.06562678,176.36,176.26,2.54403691]
[1641167746201,12.06562678,176.36,176.26,3.80743691]
[1641167746402,12.06562678,176.36,176.26,4.56743691]
[1641167747102,12.06562678,176.36,176.27,8.5083]
[1641167748102,12.06562678,176.36,176.28,1.3275]
[1641167748905,11.56562678,176.36,176.28,9.8357]
[1641167749707,12.06562678,176.36,176.28,9.8357]
[1641167751405,11.56562678,176.36,176.28,9.8357]
[1641167751604,8.7686,176.36,176.28,9.8357]
[1641167751805,7.30920308,176.38,176.29,8.1]
[1641167752004,7.30920308,176.38,176.29,8.36]
[1641167752205,7.30920308,176.38,176.32,23.94491113]
[1641167752806,7.30920308,176.38,176.32,25.38954019]
[1641167755409,7.56920308,176.38,176.32,25.38954019]
[1641167758013,7.30920308,176.38,176.32,25.38954019]
[1641167758212,7.30920308,176.38,176.32,33.89564019]
[1641167758416,7.30920308,176.38,176.32,34.15564019]
[1641167758839,7.30920308,176.38,176.32,34.65564019]
[1641167760041,7.30920308,176.38,176.32,34.15564019]
[1641167762043,7.30920308,176.38,176.32,34.65564019]
[1641167762944,7.30920308,176.38,176.32,34.15564019]
[1641167763346,7.30920308,176.38,176.32,33.89564019]
[1641167763547,7.30920308,176.38,176.32,25.38954019]
[1641167763746,7.30920308,176.38,176.32,23.94491113]
[1641167765951,7.30920308,176.38,176.32,32.45111113]
[1641167766250,7.30920308,176.38,176.32,32.95111113]
[1641167766549,7.30920308,176.38,176.32,33.21111113]
[1641167767151,7.30920308,176.38,176.32,32.71111113]
[1641167767351,7.30920308,176.38,176.32,23.94491113]
[1641167768151,7.56920308,176.38,176.32,23.94491113]
[1641167768651,7.30920308,176.38,176.32,32.71111113]
[1641167769551,7.30920308,176.38,176.32,32.45111113]
[1641167769951,7.30920308,176.38,176.32,32.71111113]
[1641167770152,7.30920308,176.38,176.32,33.21111113]
[1641167770354,7.30920308,176.38,176.32,32.71111113]
[1641167770852,7.30920308,176.38,176.32,33.21111113]
[1641167771854,7.30920308,176.38,176.32,32.71111113]
[1641167776558,7.30920308,176.38,176.32,8.7662]
[1641167788471,7.30920308,176.38,176.32,10.69289368]
[1641167788876,7.30920308,176.38,176.32,10.19289368]
[1641167789077,7.30920308,176.38,176.32,8.7662]
[1641167789275,7.30920308,176.38,176.32,9.2662]
[1641167791879,7.30920308,176.38,176.3,3.9988118]
[1641167792078,7.30920308,176.38,176.3,12.5988118]
[1641167792802,7.80920308,176.38,176.3,9.8166]
[1641167793698,16.31670308,176.38,176.3,9.8166]
[1641167794596,15.81670308,176.38,176.3,9.8166]
[1641167795097,7.30920308,176.38,176.3,18.3237]
[1641167795299,7.30920308,176.38,176.3,18.5837]
[1641167796700,7.30920308,176.38,176.3,20.01039368]
[1641167797898,7.30920308,176.38,176.3,22.79260548]
[1641167798400,7.30920308,176.38,176.31,2.7822118]
[1641167798602,7.30920308,176.38,176.32,8.5062]
[1641167800507,7.30920308,176.38,176.32,8.7662]
[1641167800708,7.30920308,176.38,176.32,10.69289368]
[1641167801109,7.30920308,176.38,176.33,8.1]
[1641167801308,7.30920308,176.38,176.35,8.5041]
[1641167801507,7.30920308,176.38,176.36,2.45485896]
[1641167801709,7.30920308,176.38,176.36,4.11621307]
[1641167801914,7.30920308,176.38,176.36,4.37621307]
[1641167803110,7.30920308,176.38,176.37,8.5039]
[1641167803510,7.30920308,176.38,176.37,8.7639]
[1641167804312,7.30920308,176.38,176.37,9.2639]
[1641167807218,7.30920308,176.38,176.37,8.7639]
[1641167807421,7.30920308,176.38,176.37,8.5039]
[1641167808419,7.30920308,176.38,176.37,8.7639]
[1641167808819,7.30920308,176.38,176.37,10.69059368]
[1641167809216,7.30920308,176.38,176.37,18.79059368]
[1641167812419,1.3383,176.5,176.38,54.0]
[1641167812619,1.3383,176.5,176.43,8.5006]
[1641167813020,1.3383,176.5,176.43,8.7606]
[1641167813222,1.3383,176.5,176.43,9.2606]
[1641167813421,2.40334965,176.5,176.44,2.16369318]
[1641167813620,2.40334965,176.5,176.44,2.42369318]
[1641167813821,2.40334965,176.5,176.44,2.92369318]
[1641167814320,2.40334965,176.5,176.44,2.42369318]
[1641167814723,2.40334965,176.5,176.44,10.92399318]
[1641167815120,2.40334965,176.5,176.44,11.42399318]
[1641167815824,2.40334965,176.5,176.44,9.2603]
[1641167816021,2.40334965,176.5,176.42,38.53656568]
[1641167816221,2.40334965,176.5,176.43,0.26]
[1641167816423,2.40334965,176.5,176.42,38.53656568]
[1641167816623,2.90334965,176.5,176.42,30.03566568]
[1641167817724,4.41236723,176.5,176.42,30.03566568]
[1641167818224,3.91236723,176.5,176.42,30.03566568]
[1641167818724,12.41426723,176.5,176.42,30.03566568]
[1641167819131,10.90524965,176.5,176.42,30.03566568]
[1641167819331,11.40524965,176.5,176.42,30.03566568]
[1641167819833,11.40524965,176.5,176.41,16.6018]
[1641167820033,2.90334965,176.5,176.41,16.8618]
[1641167820532,3.16334965,176.5,176.41,8.36]
[1641167820732,3.16334965,176.5,176.41,0.26]
[1641167821136,3.16334965,176.5,176.4,8.7622]
[1641167821738,13.17456723,176.5,176.4,8.7622]
[1641167821936,14.44846723,176.5,176.4,8.7622]
[1641167823343,14.44846723,176.5,176.4,8.5022]
[1641167824243,13.94846723,176.5,176.4,8.5022]
[1641167824447,5.44626723,176.5,176.4,17.1022]
[1641167824643,1.50901758,176.5,176.4,17.1022]
[1641167824846,1.50901758,176.5,176.41,1.3283]
[1641167825044,1.50901758,176.5,176.44,8.5002]
[1641167825244,2.80931758,176.53,176.44,8.5002]
[1641167825443,11.80971758,176.53,176.44,8.5002]
[1641167825645,2.64022565,176.52,176.44,9.78736974]
[1641167828061,2.64022565,176.52,176.44,10.04736974]
[1641167828262,2.90022565,176.52,176.44,10.04736974]
[1641167829865,2.90022565,176.52,176.44,0.26]
[1641167830070,2.90022565,176.52,176.43,8.7608]
[1641167831267,3.40022565,176.52,176.43,8.7608]
[1641167831472,4.90924323,176.52,176.43,8.7608]
[1641167832572,3.40022565,176.52,176.43,8.7608]
[1641167833168,11.90112565,176.52,176.43,8.7608]
[1641167833973,11.40112565,176.52,176.43,8.7608]
[1641167834574,11.40112565,176.52,176.43,9.9848]
[1641167834876,3.40022565,176.52,176.43,8.7608]
[1641167836375,3.40022565,176.52,176.43,9.2608]
[1641167837177,3.40022565,176.52,176.44,1.2494]
[1641167837376,3.40022565,176.52,176.44,9.7495]
[1641167837606,3.40022565,176.52,176.44,10.0095]
[1641167838177,3.40022565,176.52,176.45,23.87314904]
[1641167838580,3.40022565,176.52,176.45,32.37304904]
[1641167840383,3.40022565,176.52,176.45,8.4999]
[1641167840785,3.40022565,176.52,176.44,10.0098]
[1641167840983,3.40022565,176.52,176.44,10.5098]
[1641167841187,3.40022565,176.52,176.42,10.39515437]
[1641167841391,3.40022565,176.52,176.42,11.15515437]
[1641167842790,11.90112565,176.52,176.43,8.5009]
[1641167842987,11.90112565,176.52,176.43,8.7609]
[1641167843388,11.90112565,176.52,176.43,10.0039]
[1641167843588,10.90112565,176.52,176.43,10.0039]
[1641167843787,10.90112565,176.52,176.43,10.5039]
[1641167843788,2.40022565,176.52,176.43,10.5039]
[1641167843990,2.14022565,176.52,176.43,10.5039]
[1641167844993,2.14022565,176.52,176.43,10.0039]
[1641167845416,2.14022565,176.52,176.43,10.5039]
[1641167851522,2.40022565,176.52,176.43,10.5039]
[1641167852021,1.90022565,176.52,176.43,10.5039]
[1641167852921,1.3003,176.53,176.43,17.6039]
[1641167853127,1.3003,176.53,176.43,24.8439]
[1641167853922,3.63512599,176.53,176.43,24.8439]
[1641167859133,3.63512599,176.53,176.43,17.3439]
[1641167859331,3.63512599,176.53,176.43,16.1009]
[1641167859531,4.13512599,176.53,176.43,16.1009]
[1641167859732,4.13512599,176.53,176.43,15.6009]
[1641167860331,4.39512599,176.53,176.43,15.6009]
[1641167860532,4.39512599,176.53,176.43,15.8609]
[1641167860730,12.89562599,176.53,176.43,15.8609]
[1641167862338,12.89562599,176.53,176.43,16.3609]
[1641167862740,14.40464357,176.53,176.43,16.3609]
[1641167863140,14.40464357,176.53,176.43,15.8609]
[1641167863744,1.50901758,176.52,176.43,15.8609]
[1641167863968,10.50991758,176.52,176.44,2.13327461]
[1641167866068,9.0009,176.52,176.44,2.13327461]
[1641167867067,10.50991758,176.52,176.44,2.13327461]
[1641167867969,10.76991758,176.52,176.44,2.13327461]
[1641167868770,2.00901758,176.52,176.44,2.13327461]
[1641167868973,1.50901758,176.52,176.44,10.89367461]
[1641167869370,1.50901758,176.52,176.44,8.5004]
[1641167869570,2.00901758,176.52,176.44,8.5004]
[1641167869771,0.5,176.52,176.44,8.5004]
[1641167869971,0.5,176.52,176.44,8.7604]
[1641167870170,5.14414357,176.53,176.44,8.7604]
[1641167870171,5.64414357,176.53,176.44,8.7604]
[1641167870574,5.64414357,176.53,176.44,11.03501003]
[1641167870772,14.14474357,176.53,176.44,11.03501003]
[1641167871173,14.14474357,176.53,176.44,8.7604]
[1641167871381,14.14474357,176.53,176.42,9.7099]
[1641167871588,14.40474357,176.53,176.42,17.101]
[1641167871783,14.40474357,176.53,176.4,1.2215]
[1641167872186,1.50901758,176.52,176.4,1.2215]
[1641167872385,8.5026,176.49,176.4,1.2215]
[1641167872590,2.50617631,176.48,176.4,1.2215]
[1641167872885,3.00617631,176.48,176.4,1.2215]
[1641167873888,3.00617631,176.48,176.4,1.7215]
[1641167874091,2.50617631,176.48,176.4,10.2237]
[1641167874488,2.50617631,176.48,176.4,10.4837]
[1641167876289,2.76617631,176.48,176.4,10.4837]
[1641167878294,2.50617631,176.48,176.4,10.4837]
[1641167879595,2.76617631,176.48,176.4,10.4837]
[1641167879992,2.76617631,176.48,176.4,9.9837]
[1641167880694,0.26,176.48,176.4,10.4837]
[1641167880893,0.26,176.48,176.4,18.5837]
[1641167881093,9.2613,176.51,176.4,18.5837]
[1641167881697,2.74240333,176.5,176.4,18.5837]
[1641167881893,3.24240333,176.5,176.4,18.5837]
[1641167884499,3.50240333,176.5,176.4,18.5837]
[1641167885097,12.00420333,176.5,176.4,18.5837]
[1641167886297,3.00240333,176.5,176.4,18.5837]
[1641167899041,4.21240333,176.5,176.4,18.5837]
[1641167900845,3.00240333,176.5,176.4,18.5837]
[1641167901645,0.26,176.5,176.4,18.5837]
[1641167901844,1.2197,176.51,176.4,18.5837]
[1641167902044,76.9789,176.54,176.4,18.5837]
[1641167902444,1.2541,176.54,176.4,18.5837]
[1641167902643,2.57136605,176.53,176.4,18.5837]
[1641167905144,2.57136605,176.53,176.4,18.3237]
[1641167905344,3.07136605,176.53,176.4,18.3237]
[1641167905545,3.33136605,176.53,176.4,18.3237]
[1641167905747,11.83176605,176.53,176.4,18.3237]
[1641167906647,11.83176605,176.53,176.4,18.5837]
[1641167906850,11.83176605,176.53,176.4,17.8237]
[1641167907250,8.5016,176.51,176.4,17.8237]
[1641167907450,2.28057588,176.5,176.4,17.8237]
[1641167908053,2.28057588,176.5,176.4,18.0837]
[1641167908253,2.28057588,176.5,176.4,18.5837]
[1641167909153,2.54057588,176.5,176.4,18.5837]
[1641167921285,2.54057588,176.5,176.4,18.3237]
[1641167922484,2.54057588,176.5,176.4,21.3659118]
[1641167923486,2.54057588,176.5,176.4,18.5837]
[1641167923887,2.28057588,176.5,176.4,18.5837]
[1641167925396,2.28057588,176.5,176.42,2.16421287]
[1641167925594,2.28057588,176.5,176.45,29.06321828]
[1641167929098,2.28057588,176.5,176.45,31.88767138]
[1641167929595,2.28057588,176.5,176.45,29.06321828]
[1641167930398,2.28057588,176.5,176.45,37.56321828]
[1641167930598,1.3397,176.52,176.45,37.56321828]
[1641167931098,1.5997,176.52,176.45,37.82321828]
[1641167931601,2.73558816,176.51,176.45,40.49148689]
[1641167931798,2.73558816,176.51,176.45,40.99148689]
[1641167931998,2.73558816,176.51,176.45,40.73148689]
[1641167932900,0.23558816,176.51,176.45,40.73148689]
[1641167936405,0.23558816,176.51,176.45,40.99148689]
[1641167937604,0.23558816,176.51,176.45,40.73148689]
[1641167937803,0.23558816,176.51,176.45,40.99148689]
[1641167938403,0.23558816,176.51,176.45,40.73148689]
[1641167938606,0.23558816,176.51,176.45,32.23148689]
[1641167940416,0.23558816,176.51,176.45,0.5]
[1641167940921,0.23558816,176.51,176.43,1.7955]
[1641167941117,0.23558816,176.51,176.43,1.5555]
[1641167941318,0.23558816,176.51,176.44,28.34660914]
[1641167941520,0.23558816,176.51,176.44,28.60660914]
[1641167941720,0.23558816,176.51,176.44,37.60710914]
[1641167942836,0.23558816,176.51,176.45,9.7467]
[1641167943038,0.23558816,176.51,176.45,1.2466]
[1641167943439,0.23558816,176.51,176.44,28.84660914]
[1641167945840,0.23558816,176.51,176.44,37.34710914]
[1641167947043,0.23558816,176.51,176.44,28.84660914]
[1641167947443,0.23558816,176.51,176.44,0.5]
[1641167947643,0.23558816,176.51,176.42,12.27043668]
[1641167949041,8.73698816,176.51,176.42,12.27043668]
[1641167950543,8.73698816,176.51,176.42,12.01043668]
[1641167950741,9.23698816,176.51,176.42,12.01043668]
[1641167950943,9.23698816,176.51,176.42,3.50933668]
[1641167951141,9.23698816,176.51,176.42,4.75733668]
[1641167953247,2.72550758,176.5,176.42,4.75733668]
[1641167953446,11.72740758,176.5,176.42,4.75733668]
[1641167955352,11.72740758,176.5,176.42,0.5]
[1641167955550,11.72740758,176.5,176.39,185.91490285]
[1641167955748,11.72740758,176.5,176.39,36.66940285]
[1641167956048,11.72740758,176.5,176.39,37.16940285]
[1641167956248,11.72740758,176.5,176.4,2.76932405]
[1641167956547,11.72740758,176.5,176.4,3.26932405]
[1641167957048,11.98740758,176.5,176.4,3.26932405]
[1641167957249,13.28240758,176.5,176.4,3.26932405]
[1641167957447,13.28240758,176.5,176.4,2.76932405]
[1641167958248,13.28240758,176.5,176.39,36.66940285]
[1641167958448,13.28240758,176.5,176.39,37.16940285]
[1641167958950,14.79142516,176.5,176.39,37.16940285]
[1641167959351,14.79142516,176.5,176.4,2.39718544]
[1641167959954,14.79142516,176.5,176.4,2.89718544]
[1641167960854,13.28240758,176.5,176.4,2.89718544]
[1641167962658,13.28240758,176.5,176.4,2.39718544]
[1641167963752,14.79142516,176.5,176.4,2.39718544]
[1641167966856,14.29142516,176.5,176.4,2.39718544]
[1641167969960,4.23452516,176.5,176.4,11.15958544]
[1641167970361,4.23452516,176.5,176.41,1.3152]
[1641167970663,4.23452516,176.5,176.41,9.6752]
[1641167970962,4.23452516,176.5,176.42,8.5011]
[1641167971262,2.72550758,176.5,176.43,2.44609232]
[1641167971462,2.72550758,176.5,176.43,2.70609232]
[1641167972260,2.72550758,176.5,176.43,11.20709232]
[1641167972461,2.98550758,176.5,176.43,11.20709232]
[1641167972661,2.98550758,176.5,176.43,2.70609232]
[1641167973862,2.98550758,176.5,176.43,0.26]
[1641167974061,2.98550758,176.5,176.42,1.5959]
[1641167975761,2.98550758,176.5,176.42,10.0972]
[1641167977969,2.72550758,176.5,176.42,10.0972]
[1641167981873,2.72550758,176.5,176.41,2.5217379]
[1641167982474,2.72550758,176.5,176.41,3.7645379]
[1641167983473,2.72550758,176.5,176.41,4.0245379]
[1641167983896,11.22740758,176.5,176.41,12.5264379]
[1641167985701,11.48740758,176.5,176.41,9.7447]
[1641167985904,18.61640758,176.5,176.4,8.5024]
[1641167986101,18.61640758,176.5,176.38,2.7822118]
[1641167987011,18.61640758,176.5,176.35,3.80244484]
[1641167987012,20.12542516,176.5,176.35,5.28185664]
[1641167987203,1.2746,176.49,176.35,5.28185664]
[1641167987407,8.5051,176.44,176.35,5.28185664]
[1641167987603,2.949166,176.43,176.35,2.7822118]
[1641167988205,2.949166,176.43,176.34,3.9981118]
[1641167988810,2.949166,176.43,176.34,6.38118631]
[1641167989008,3.209166,176.43,176.34,6.64118631]
[1641167989211,3.209166,176.43,176.34,3.85897451]
[1641167989911,11.714566,176.43,176.34,12.36417451]
[1641167990113,11.714566,176.43,176.34,3.59897451]
[1641167993014,11.714566,176.43,176.34,12.10427451]
[1641167993615,8.7654,176.43,176.34,12.10427451]
[1641167994017,0.26,176.43,176.34,12.10427451]